bitfinex-derivatives/quotes_SOLF0:USTF0_20250709
["timestamp","ask_amount","ask_price","bid_price","bid_amount"]
[1752091401992,233.92,156.95,156.84,10.44343955]
[1752091401993,6.3732,156.87,156.84,72.44343955]
[1752091402183,6.3732,156.87,156.84,10.44343955]
[1752091402388,10.44343955,156.94,156.82,10.44343955]
[1752091402586,10.44343955,156.94,156.8,6.3756]
[1752091402783,10.44343955,156.94,156.78,2.2226]
[1752091402784,10.44343955,156.94,156.81,10.44343955]
[1752091402985,10.44343955,156.91,156.8,10.44343955]
[1752091403193,4.4181,156.9,156.8,10.44343955]
[1752091403592,4.4181,156.9,156.81,6.3754]
[1752091403895,4.4181,156.9,156.78,2.2226]
[1752091404098,4.4181,156.9,156.82,10.44343955]
[1752091404397,8.65824403,156.89,156.82,10.44343955]
[1752091404586,8.65824403,156.88,156.85,6.3738]
[1752091404791,8.82059373,156.93,156.85,10.44343955]
[1752091404991,8.65145583,156.92,156.86,10.44343955]
[1752091405193,8.65145583,156.91,156.86,16.81683955]
[1752091405395,8.65145583,156.9,156.86,16.81683955]
[1752091405594,8.82059373,156.94,156.86,10.44343955]
[1752091405796,8.64870689,156.93,156.86,10.44343955]
[1752091405996,17.46930062,156.92,156.83,10.44343955]
[1752091406196,21.93102651,156.94,156.83,10.44343955]
[1752091406197,6.3738,156.86,156.83,10.44343955]
[1752091406792,6.3738,156.86,156.83,6.14215346]
[1752091407188,14.96274719,156.92,156.83,6.19103412]
[1752091407395,8.58526403,156.91,156.83,6.19103412]
[1752091407595,8.58526403,156.9,156.83,6.19103412]
[1752091407792,8.82059373,156.93,156.85,6.14215346]
[1752091407995,8.5844912,156.92,156.84,6.14215346]
[1752091408195,8.5844912,156.91,156.84,6.14215346]
[1752091408391,8.5844912,156.9,156.84,12.51615346]
[1752091408591,233.74,156.93,156.84,12.51615346]
[1752091408791,8.56455611,156.92,156.84,12.51615346]
[1752091408994,8.56455611,156.91,156.85,6.14215346]
[1752091409189,8.56455611,156.9,156.85,6.14215346]
[1752091409391,233.74,156.93,156.85,6.14215346]
[1752091409599,8.56075985,156.92,156.85,6.14215346]
[1752091409804,8.56075985,156.91,156.87,6.14215346]
[1752091409995,6.3724,156.89,156.87,6.14215346]
[1752091410202,8.55717797,156.94,156.87,6.14215346]
[1752091410500,14.69933143,156.93,156.85,6.14215346]
[1752091410694,8.55717797,156.92,156.83,68.14215346]
[1752091410890,8.55717797,156.91,156.83,68.14215346]
[1752091411088,8.50275346,156.91,156.83,62.0]
[1752091411288,8.50275346,156.91,156.81,6.14215346]
[1752091411494,8.55555271,156.9,156.81,6.14215346]
[1752091411798,8.55555271,156.9,156.78,2.2226]
[1752091411799,6.14215346,156.89,156.78,2.2226]
[1752091412097,6.14215346,156.87,156.76,6.14215346]
[1752091412288,233.6,156.86,156.76,6.14215346]
[1752091412892,233.6,156.86,156.72,1.10967619]
[1752091413199,8.55403581,156.85,156.78,6.14215346]
[1752091413400,8.55403581,156.85,156.72,1.10967619]
[1752091413588,6.14215346,156.85,156.76,6.14215346]
[1752091413788,2.2275,156.84,156.76,6.14215346]
[1752091413994,2.2275,156.84,156.78,12.51855346]
[1752091413995,6.3754,156.82,156.78,12.51855346]
[1752091414193,8.55403581,156.85,156.78,6.14215346]
[1752091414395,239.68215346,156.87,156.78,6.14215346]
[1752091414592,8.52958249,156.86,156.8,6.14215346]
[1752091414801,2.2275,156.88,156.82,6.14215346]
[1752091415002,6.3737,156.86,156.82,12.51715346]
[1752091415299,2.2275,156.88,156.83,6.14215346]
[1752091415689,2.2329,156.89,156.85,6.14215346]
[1752091416197,2.3652,156.93,156.85,6.14215346]
[1752091416396,8.52389829,156.92,156.87,6.14215346]
[1752091416897,8.52389829,156.92,156.85,10.45137604]
[1752091417104,6.3719,156.9,156.85,16.82507604]
[1752091417497,8.52394249,156.92,156.85,16.82507604]
[1752091417693,4.5204,156.93,156.85,16.82507604]
[1752091418001,8.52395119,156.92,156.84,10.45137604]
[1752091418298,6.3729,156.88,156.84,16.82537604]
[1752091418495,8.52466655,156.92,156.84,10.45137604]
[1752091418695,8.52453322,156.92,156.84,10.45137604]
[1752091418900,4.5204,156.93,156.85,6.3736]
[1752091419089,8.5566861,156.92,156.85,68.3736]
[1752091419296,4.5204,156.93,156.85,6.3736]
[1752091419594,8.55840633,156.92,156.81,10.45137604]
[1752091419804,8.55840633,156.91,156.81,10.45137604]
[1752091419995,6.3737,156.86,156.81,10.45137604]
[1752091420194,8.56144116,156.92,156.84,10.45137604]
[1752091420405,12.7384,156.97,156.79,4.4046]
[1752091420406,8.78970623,156.96,156.88,10.45137604]
[1752091420700,8.56055392,156.95,156.88,10.45137604]
[1752091420904,8.56055392,156.94,156.88,10.45137604]
[1752091421107,8.56055392,156.93,156.88,10.45137604]
[1752091421407,8.56055392,156.92,156.88,10.45137604]
[1752091421706,6.3719,156.9,156.88,10.45137604]
[1752091422101,6.3716,156.91,156.88,10.45137604]
[1752091422298,8.78970623,156.96,156.88,10.45137604]
[1752091422500,8.57106763,156.95,156.88,10.45137604]
[1752091422697,8.57106763,156.94,156.88,10.45137604]
[1752091422902,8.78970623,156.97,156.88,10.45137604]
[1752091423099,8.57797754,156.96,156.88,10.45137604]
[1752091423303,8.57797754,156.95,156.88,16.82367604]
[1752091423508,8.57797754,156.94,156.88,10.45137604]
[1752091423799,8.57797754,156.93,156.88,10.45137604]
[1752091423999,8.78970623,156.97,156.88,10.45137604]
[1752091424201,17.28605493,156.96,156.88,10.45137604]
[1752091424409,8.4963487,156.95,156.8,62.0]
[1752091424609,8.4963487,156.94,156.86,10.45137604]
[1752091424911,8.4963487,156.93,156.86,10.45137604]
[1752091425210,6.3717,156.91,156.87,6.373]
[1752091426206,6.372,156.9,156.87,6.373]
[1752091426407,8.78970623,156.96,156.86,10.45137604]
[1752091426613,8.5394994,156.95,156.86,10.45137604]
[1752091426813,8.5394994,156.94,156.89,16.82337604]
[1752091427015,8.44336828,156.93,156.89,10.45137604]
[1752091427202,8.78970623,156.96,156.89,10.45137604]
[1752091427508,6.3717,156.91,156.89,10.45137604]
[1752091428003,6.3719,156.9,156.87,8.5688]
[1752091428206,6.3719,156.9,156.87,19.02017604]
[1752091428408,8.78970623,156.94,156.87,19.02017604]
[1752091428711,6.3718,156.91,156.87,19.02017604]
[1752091429308,8.78970623,156.95,156.87,8.5688]
[1752091429509,8.27137877,156.94,156.87,12.64727604]
[1752091429810,8.27137877,156.93,156.87,12.64727604]
[1752091430005,8.27137877,156.92,156.87,12.64727604]
[1752091430310,8.27137877,156.91,156.87,12.64727604]
[1752091430613,6.3721,156.9,156.87,12.64727604]
[1752091431016,8.78970623,156.95,156.8,62.0]
[1752091431314,8.78970623,156.92,156.83,10.45137604]
[1752091431613,6.3726,156.89,156.83,10.45137604]
[1752091432314,8.28883875,156.88,156.81,2.2219]
[1752091432514,8.78970623,156.92,156.83,10.45137604]
[1752091432712,6.3725,156.89,156.86,6.3732]
[1752091432909,8.78970623,156.93,156.86,10.45137604]
[1752091433205,8.28857478,156.92,156.89,10.45137604]
[1752091433406,8.28857478,156.91,156.89,10.45137604]
[1752091433717,8.78970623,156.95,156.93,6.3706]
[1752091433907,8.78970623,156.95,156.81,2.2219]
[1752091433908,8.26553856,156.94,156.92,10.45137604]
[1752091434214,2.2255,156.98,156.93,7.92315041]
[1752091434415,6.3693,156.97,156.94,14.29335041]
[1752091434719,2.2255,156.98,156.95,7.92315041]
[1752091434911,2.2255,156.98,156.91,8.66673751]
[1752091435213,14.97877604,156.98,156.89,8.66673751]
[1752091435611,10.45137604,156.95,156.88,8.66673751]
[1752091435811,464.8,156.94,156.87,8.66673751]
[1752091436212,6.3727,156.88,156.86,8.66673751]
[1752091436716,6.3724,156.89,156.86,8.66673751]
[1752091437421,464.8,156.94,156.87,8.66673751]
[1752091437618,464.8,156.94,156.86,8.66673751]
[1752091437819,6.3722,156.9,156.86,15.04023751]
[1752091438211,6.3722,156.9,156.86,8.66673751]
[1752091438508,6.3722,156.9,156.86,15.04013751]
[1752091438917,6.3724,156.89,156.86,15.04013751]
[1752091439117,464.8,156.94,156.87,6.14025696]
[1752091439414,6.3709,156.93,156.89,14.80699447]
[1752091439614,6.3709,156.93,156.89,21.17909447]
[1752091439819,6.3709,156.93,156.89,14.80699447]
[1752091440219,232.2,156.96,156.89,8.66673751]
[1752091440413,232.2,156.96,156.88,8.66673751]
[1752091440612,238.34025696,156.96,156.88,8.66673751]
[1752091441012,6.14025696,156.94,156.88,8.66673751]
[1752091441217,6.3717,156.91,156.87,8.66673751]
[1752091441417,238.34025696,156.96,156.88,8.66673751]
[1752091441817,6.3716,156.91,156.88,8.66673751]
[1752091442018,238.34025696,156.96,156.89,8.66673751]
[1752091442419,6.3716,156.91,156.89,8.66673751]
[1752091442624,238.34025696,156.96,156.89,8.66673751]
[1752091443519,6.3714,156.92,156.89,8.66673751]
[1752091443918,4.5274,156.98,156.9,6.14025696]
[1752091444121,231.94,156.97,156.91,8.66673751]
[1752091444423,231.92,156.97,156.9,21.17859447]
[1752091444620,231.92,156.97,156.84,2.2985]
[1752091444621,2.2255,156.98,156.92,6.14025696]
[1752091444825,234.1055,156.98,156.92,6.14025696]
[1752091445026,6.3711,156.92,156.91,8.66673751]
[1752091445227,6.3711,156.92,156.9,11.55565002]
[1752091445428,6.3711,156.92,156.89,8.71945867]
[1752091445629,6.3711,156.92,156.9,8.71945867]
[1752091445830,6.3711,156.92,156.89,8.71945867]
[1752091446727,6.3715,156.91,156.89,8.71945867]
[1752091446929,6.3715,156.91,156.9,7.98086336]
[1752091447324,6.3715,156.91,156.9,7.98159425]
[1752091449630,6.14025696,156.96,156.89,8.71308611]
[1752091449827,6.82680737,156.91,156.84,5.002e-05]
[1752091450128,6.82680737,156.86,156.78,2.3609]
[1752091450330,6.3742,156.85,156.78,2.3609]
[1752091450534,6.82680737,156.87,156.78,9.18770737]
[1752091450732,6.82680737,156.87,156.8,0.04320618]
[1752091450929,6.82680737,156.83,156.8,0.04320618]
[1752091451130,6.82680737,156.81,156.73,2.3609]
[1752091451735,469.76680737,156.81,156.73,2.3609]
[1752091452333,462.94,156.81,156.74,6.83098609]
[1752091452527,0.04286414,156.79,156.74,6.83098609]
[1752091452836,0.04286414,156.79,156.76,6.83098609]
[1752091453337,240.56398609,156.87,156.78,6.83098609]
[1752091453529,9.16398609,156.87,156.78,6.83098609]
[1752091453925,6.3744,156.84,156.78,6.83098609]
[1752091454638,2.333,156.87,156.8,6.83098609]
[1752091455032,6.82964901,156.85,156.73,2.3609]
[1752091455231,6.82964901,156.83,156.73,2.3609]
[1752091455537,6.87150035,156.81,156.72,6.82964901]
[1752091455735,6.87150035,156.81,156.7,6.00225703]
[1752091455938,6.87150035,156.81,156.74,6.3784]
[1752091456137,6.3764,156.79,156.74,6.3784]
[1752091456341,231.32,156.82,156.74,6.83296174]
[1752091456532,0.04104966,156.79,156.74,6.83296174]
[1752091457135,0.04104966,156.79,156.75,6.3777]
[1752091457336,0.04104966,156.79,156.74,6.83296174]
[1752091457537,0.04104966,156.79,156.76,6.83296174]
[1752091458334,0.04104966,156.79,156.75,6.83296174]
[1752091458840,0.04104966,156.79,156.76,6.3772]
[1752091459340,6.41734966,156.79,156.75,6.3778]
[1752091459539,0.04104966,156.79,156.71,62.0]
[1752091459733,0.04104966,156.79,156.73,6.83296174]
[1752091460134,0.04104966,156.79,156.71,79.33347503]
[1752091460135,0.04104966,156.79,156.75,6.83296174]
[1752091460536,0.04104966,156.79,156.77,6.3769]
[1752091460837,0.04104966,156.79,156.77,6.83296174]
[1752091461438,0.04104966,156.79,156.73,17.33347503]
[1752091461740,0.04104966,156.79,156.77,6.83296174]
[1752091461941,0.04104966,156.79,156.73,17.33347503]
[1752091462241,0.04104966,156.79,156.76,6.83296174]
[1752091462743,0.04104966,156.79,156.76,6.3773]
[1752091462938,0.04104966,156.79,156.71,62.0]
[1752091463139,0.04104966,156.79,156.72,6.3791]
[1752091463338,6.83296174,156.78,156.7,3.69535703]
[1752091463543,6.83296174,156.76,156.7,3.69535703]
[1752091463745,6.83296174,156.74,156.7,0.13665703]
[1752091464042,6.84268876,156.71,156.59,17.33347503]
[1752091464237,0.04336393,156.75,156.59,6.3843]
[1752091464238,6.84268876,156.67,156.59,6.3843]
[1752091464434,6.84268876,156.67,156.57,6.84268876]
[1752091464639,6.3823,156.65,156.54,2.2688]
[1752091464939,0.04046,156.65,156.58,6.84268876]
[1752091465131,6.84268876,156.67,156.58,6.84268876]
[1752091465337,0.04235013,156.63,156.58,6.84268876]
[1752091465540,0.04235013,156.63,156.61,6.84268876]
[1752091465740,0.04235013,156.63,156.62,6.3833]
[1752091465942,0.04235013,156.63,156.61,6.84268876]
[1752091465943,6.84268876,156.75,156.61,6.84268876]
[1752091466133,2.3689,156.76,156.62,64.3105]
[1752091466344,9.20703376,156.76,156.62,64.3105]
[1752091466549,2.3689,156.76,156.62,64.3105]
[1752091466738,550.66,156.77,156.67,6.8404687]
[1752091466943,550.66,156.77,156.69,6.8404687]
[1752091467344,550.66,156.77,156.69,6.3803]
[1752091467644,6.8404687,156.76,156.67,6.8404687]
[1752091467839,6.3796,156.72,156.67,13.2214687]
[1752091468146,2.3689,156.75,156.62,64.3105]
[1752091468346,2.3689,156.75,156.64,6.8404687]
[1752091468547,2.3689,156.75,156.66,6.8404687]
[1752091468747,6.8404687,156.74,156.66,6.8404687]
[1752091468950,14.01260639,156.75,156.67,6.3812]
[1752091469158,2.2299,156.74,156.67,6.3812]
[1752091469343,2.2299,156.74,156.63,11.64370639]
[1752091469544,2.2299,156.74,156.66,6.3815]
[1752091469944,2.2299,156.74,156.63,11.64370639]
[1752091470242,6.3799,156.71,156.62,64.3105]
[1752091470447,230.6,156.73,156.62,75.95641436]
[1752091471242,6.3799,156.71,156.66,6.3813]
[1752091471447,2.2299,156.74,156.64,11.64220394]
[1752091471647,551.0,156.87,156.71,11.64220394]
[1752091471848,235.0898,156.86,156.77,6.3769]
[1752091472050,4.5698,156.86,156.75,11.64220394]
[1752091472251,235.0698,156.86,156.75,11.64220394]
[1752091472550,11.62417403,156.85,156.73,13.91577403]
[1752091472752,11.62417403,156.85,156.74,6.3781]
[1752091472946,11.62417403,156.85,156.72,2.3284]
[1752091473152,235.0498,156.86,156.63,551.0]
[1752091473153,11.62417403,156.82,156.68,11.62417403]
[1752091473450,11.62417403,156.79,156.68,11.62417403]
[1752091473649,234.8967,156.78,156.68,11.62417403]
[1752091473848,6.3786,156.74,156.68,11.62417403]
[1752091474040,234.8967,156.78,156.66,2.2916]
[1752091474248,234.8967,156.78,156.68,6.3806]
[1752091474441,234.8967,156.78,156.66,2.2916]
[1752091474642,234.8967,156.78,156.67,62.0]
[1752091474852,6.3799,156.71,156.67,68.3812]
[1752091475148,234.8967,156.78,156.66,2.2916]
[1752091475352,6.3795,156.72,156.67,6.3809]
[1752091475548,11.62417403,156.77,156.66,2.2916]
[1752091476052,6.3797,156.71,156.67,6.3812]
[1752091476255,234.8967,156.78,156.67,11.62417403]
[1752091477551,6.3787,156.74,156.69,6.3801]
[1752091477760,234.8967,156.78,156.69,6.3801]
[1752091478051,234.8967,156.78,156.66,2.2916]
[1752091478247,234.8967,156.78,156.67,62.0]
[1752091478450,234.8967,156.78,156.66,2.2916]
[1752091478753,11.62417403,156.76,156.64,2.1461]
[1752091478958,11.62417403,156.76,156.64,13.77027403]
[1752091479343,551.02,156.77,156.67,6.381]
[1752091479545,551.02,156.77,156.67,11.62417403]
[1752091480354,551.02,156.77,156.68,2.2099]
[1752091480355,781.1,156.77,156.68,2.2099]
[1752091480555,781.1,156.77,156.71,6.3795]
[1752091480949,781.1,156.77,156.68,2.2099]
[1752091481147,6.3784,156.74,156.7,6.3797]
[1752091481347,6.3784,156.74,156.7,68.3797]
[1752091481651,6.3784,156.74,156.71,6.3796]
[1752091481857,781.02,156.77,156.7,0.04016852]
[1752091482052,780.98,156.77,156.7,0.04016852]
[1752091482854,6.3786,156.74,156.7,6.41986852]
[1752091483060,780.98,156.77,156.7,0.04016852]
[1752091483265,792.60417403,156.77,156.7,0.04016852]
[1752091483956,551.02,156.77,156.7,0.04016852]
[1752091484948,6.3793,156.72,156.7,0.04016852]
[1752091485151,551.02,156.77,156.7,0.04016852]
[1752091485654,6.3788,156.73,156.7,0.04016852]
[1752091486052,551.02,156.77,156.7,0.04016852]
[1752091486251,780.74,156.77,156.7,0.04016852]
[1752091486452,780.74,156.77,156.7,6.42006852]
[1752091487250,6.3786,156.74,156.71,6.3795]
[1752091487456,780.74,156.77,156.7,0.04016852]
[1752091488562,6.379,156.73,156.7,6.42006852]
[1752091488860,780.74,156.77,156.7,0.04016852]
[1752091489661,780.74,156.77,156.7,6.41986852]
[1752091490057,6.3787,156.74,156.7,0.04016852]
[1752091490258,780.74,156.77,156.7,0.04016852]
[1752091490665,6.3786,156.74,156.71,6.3796]
[1752091490866,780.74,156.77,156.7,0.04016852]
[1752091491462,780.74,156.77,156.7,6.41996852]
[1752091492170,780.74,156.77,156.7,0.04016852]
[1752091492864,6.3786,156.74,156.71,6.3794]
[1752091493362,780.74,156.77,156.7,0.04016852]
[1752091494063,6.3788,156.73,156.7,6.41996852]
[1752091494465,0.04160195,156.75,156.7,0.04016852]
[1752091494658,0.04160195,156.75,156.71,6.3795]
[1752091494858,0.04160195,156.75,156.7,0.04016852]
[1752091495265,6.3794,156.72,156.7,0.04016852]
[1752091495559,229.14,156.73,156.7,0.04016852]
[1752091495964,6.3796,156.71,156.7,0.04016852]
[1752091496758,229.14,156.73,156.7,0.04016852]
[1752091497169,6.3796,156.71,156.7,0.04016852]
[1752091498061,228.98,156.73,156.7,0.04016852]
[1752091498459,235.3589,156.73,156.7,6.41976852]
[1752091498855,0.04160195,156.75,156.7,0.04016852]
[1752091499056,228.94,156.74,156.7,6.87666723]
[1752091499468,228.94,156.74,156.71,6.3794]
[1752091499663,228.94,156.74,156.7,0.04016852]
[1752091500069,235.3186,156.74,156.71,6.3793]
[1752091500366,228.94,156.74,156.7,62.04016852]
[1752091500667,228.94,156.74,156.71,6.3795]
[1752091500668,235.3185,156.74,156.71,6.3795]
[1752091500861,0.04160195,156.75,156.73,6.83649871]
[1752091501159,0.04160195,156.75,156.74,6.3784]
[1752091501360,4.511,156.82,156.73,6.83649871]
[1752091501565,551.08,156.85,156.8,6.3758]
[1752091501762,2.3113,156.89,156.82,6.83649871]
[1752091501963,2.1997,156.91,156.86,6.83649871]
[1752091502155,2.1997,156.91,156.78,6.83649871]
[1752091502156,2.3113,156.96,156.88,6.83649871]
[1752091502360,2.3113,156.96,156.9,6.83649871]
[1752091502561,228.72,156.95,156.9,0.04811623]
[1752091502763,6.3715,156.91,156.9,0.04811623]
[1752091502960,228.72,156.95,156.9,0.04811623]
[1752091503657,228.72,156.95,156.9,6.88461494]
[1752091503860,228.64,156.95,156.9,0.04811623]
[1752091504061,6.83649871,156.93,156.9,0.04811623]
[1752091504269,6.3715,156.91,156.9,0.04811623]
[1752091504562,235.37649871,156.91,156.83,62.0]
[1752091504862,235.37649871,156.91,156.82,6.3749]
[1752091504863,6.3738,156.86,156.82,6.3749]
[1752091505065,6.83649871,156.85,156.76,6.83649871]
[1752091505365,228.5,156.87,156.74,11.34599871]
[1752091505561,6.83649871,156.83,156.74,11.34599871]
[1752091505767,235.27649871,156.83,156.74,11.34599871]
[1752091506068,235.27649871,156.83,156.74,4.5095]
[1752091506265,235.27649871,156.83,156.69,11.55298606]
[1752091506266,6.83649871,156.79,156.69,11.55298606]
[1752091506474,235.25649871,156.79,156.74,6.3783]
[1752091506866,228.42,156.79,156.74,6.3783]
[1752091507170,228.42,156.79,156.68,4.5095]
[1752091507368,11.63492695,156.77,156.68,4.5095]
[1752091507565,6.3781,156.75,156.71,6.3795]
[1752091507766,242.29762695,156.79,156.71,6.3795]
[1752091508162,2.2427,156.79,156.68,78.06248606]
[1752091508366,2.2132,156.86,156.73,11.55298606]
[1752091508567,2.2132,156.86,156.75,11.55298606]
[1752091508864,228.24,156.88,156.76,25.42381301]
[1752091509266,228.24,156.88,156.76,2.2359]
[1752091509571,228.24,156.88,156.8,11.63492695]
[1752091509969,228.24,156.88,156.81,8.67480574]
[1752091510166,228.24,156.88,156.8,20.30973269]
[1752091510369,228.24,156.88,156.81,8.67480574]
[1752091510569,228.24,156.88,156.8,20.30973269]
[1752091510771,228.24,156.88,156.8,8.67480574]
[1752091510967,228.24,156.88,156.76,10.91070574]
[1752091511168,11.63492695,156.87,156.76,2.2359]
[1752091511468,11.63492695,156.87,156.75,70.67480574]
[1752091511664,11.63492695,156.87,156.75,8.67480574]
[1752091511872,6.3754,156.82,156.77,6.3769]
[1752091512370,6.3746,156.84,156.75,11.63492695]
[1752091512566,228.24,156.88,156.75,20.31752442]
[1752091512764,228.24,156.88,156.78,11.63492695]
[1752091513072,228.24,156.88,156.81,11.63492695]
[1752091513465,6.3734,156.87,156.81,11.63492695]
[1752091513670,2.2155,156.89,156.84,11.63492695]
[1752091514063,2.2427,156.9,156.84,11.63492695]
[1752091514371,2.1446,156.95,156.87,11.63492695]
[1752091514572,4.3801,156.95,156.88,6.3723]
[1752091514772,4.3801,156.95,156.87,11.63492695]
[1752091515565,4.3801,156.95,156.9,11.63492695]
[1752091515872,2.1446,156.95,156.9,11.63492695]
[1752091516168,227.8,156.98,156.9,11.63492695]
[1752091516473,550.76,156.99,156.9,11.63492695]
[1752091516675,557.1283,156.99,156.95,6.3698]
[1752091516871,784.8483,156.99,156.95,6.3698]
[1752091517267,6.3687,156.98,156.94,6.3701]
[1752091517576,550.76,156.99,156.93,11.63492695]
[1752091517875,2.1446,157.01,156.93,11.63492695]
[1752091518970,2.1446,157.01,156.91,11.63492695]
[1752091519163,2.1446,157.01,156.94,11.63492695]
[1752091519364,2.1446,157.01,156.97,11.63492695]
[1752091519564,227.56,157.04,156.88,8.68259747]
[1752091519769,227.56,157.04,156.94,11.63492695]
[1752091519963,6.3687,156.98,156.87,559.16259747]
[1752091520273,11.63492695,157.02,156.92,11.63492695]
[1752091520463,11.63492695,157.02,156.9,11.63492695]
[1752091520871,6.3673,157.02,156.96,11.63492695]
[1752091521071,2.2316,157.05,156.96,11.63492695]
[1752091521072,229.6516,157.05,156.96,11.63492695]
[1752091521374,229.6516,157.05,156.97,6.3689]
[1752091521375,6.3677,157.01,156.97,6.3689]
[1752091521589,229.6516,157.05,156.96,11.63492695]
[1752091522488,6.3677,157.01,156.96,11.63492695]
[1752091522688,229.6516,157.05,156.96,11.63492695]
[1752091522990,12.7207,157.19,156.99,11.63492695]
[1752091523195,455.01238679,157.12,156.99,11.63492695]
[1752091523395,6.3653,157.07,157.02,6.3667]
[1752091523596,455.01238679,157.12,157.02,6.3667]
[1752091523890,6.3654,157.07,157.02,6.3666]
[1752091524191,6.3654,157.07,156.99,11.63492695]
[1752091524192,227.22,157.07,156.99,11.63492695]
[1752091524589,227.22,157.07,157.0,11.63492695]
[1752091524790,4.31,157.06,157.0,11.63492695]
[1752091525787,4.31,157.06,156.96,11.63492695]
[1752091526385,4.31,157.06,156.97,6.369]
[1752091526787,6.3676,157.01,156.97,6.369]
[1752091526986,226.98,157.02,156.94,11.63492695]
[1752091527187,6.3685,156.99,156.94,11.63492695]
[1752091527494,226.98,157.02,156.94,11.63492695]
[1752091527992,226.98,157.02,156.97,11.63492695]
[1752091528188,233.3471,157.02,156.97,11.63492695]
[1752091528492,226.98,157.02,156.99,6.3679]
[1752091528784,226.98,157.02,156.97,11.63492695]
[1752091528785,4.31,157.06,156.97,11.63492695]
[1752091528990,6.3663,157.04,156.97,11.63492695]
[1752091529191,6.3663,157.04,157.0,11.63492695]
[1752091529582,6.3663,157.04,157.0,18.00232695]
[1752091529989,231.21,157.06,157.0,11.63492695]
[1752091530583,231.21,157.06,156.98,18.00342695]
[1752091530892,231.21,157.06,156.98,11.63492695]
[1752091531289,231.21,157.06,156.99,6.368]
[1752091531689,231.21,157.06,156.96,11.63492695]
[1752091532290,6.3682,157.0,156.95,11.63492695]
[1752091532687,242.84492695,157.06,156.93,11.63492695]
[1752091532891,11.63492695,157.03,156.9,15.93942695]
[1752091533189,11.63492695,157.0,156.89,11.63492695]
[1752091533387,11.63492695,156.97,156.86,11.63492695]
[1752091533584,228.7315,156.96,156.86,11.63492695]
[1752091533790,6.3715,156.91,156.88,6.3724]
[1752091533989,228.7315,156.96,156.86,11.63492695]
[1752091534384,2.1515,156.96,156.89,11.63492695]
[1752091534994,776.64,156.98,156.83,4.444]
[1752091535296,778.7915,156.98,156.89,11.63492695]
[1752091535487,6.3699,156.95,156.92,6.3709]
[1752091535683,552.2715,156.98,156.89,11.63492695]
[1752091535891,226.46,156.97,156.89,11.63492695]
[1752091536093,778.7315,156.98,156.92,11.63492695]
[1752091536396,776.56,156.98,156.92,11.63492695]
[1752091537087,550.12,156.98,156.92,11.63492695]
[1752091537291,226.38,157.0,156.95,11.63492695]
[1752091537687,226.38,157.0,156.87,12.7458]
[1752091537888,226.38,157.0,156.93,11.63492695]
[1752091538693,226.38,157.0,156.86,11.63492695]
[1752091538894,226.38,157.0,156.92,11.63492695]
[1752091539192,6.3685,156.99,156.96,6.3692]
[1752091539388,6.3685,156.99,156.95,11.63492695]
[1752091539389,2.1741,157.02,156.95,11.63492695]
[1752091539786,2.1741,157.02,156.94,11.63492695]
[1752091540284,228.3741,157.02,156.97,11.63492695]
[1752091540889,6.3677,157.01,156.98,6.3683]
[1752091541090,6.3677,157.01,156.97,11.63492695]
[1752091541490,2.1741,157.02,156.97,11.63492695]
[1752091541697,226.1,157.04,156.97,11.63492695]
[1752091542091,2.1839,157.05,156.97,11.63492695]
[1752091542290,228.2639,157.05,156.97,11.63492695]
[1752091542493,228.2439,157.05,156.97,73.63492695]
[1752091542991,228.2239,157.05,156.97,73.63492695]
[1752091543195,6.3663,157.04,157.01,6.3672]
[1752091543495,550.16,157.06,156.97,73.63492695]
[1752091543693,556.5257,157.06,157.0,11.63492695]
[1752091543994,225.96,157.08,157.03,11.63492695]
[1752091544293,6.3647,157.08,157.05,6.3658]
[1752091544495,2.3066,157.1,157.03,11.63492695]
[1752091544496,225.92,157.09,157.03,11.63492695]
[1752091544694,225.92,157.09,157.01,11.63492695]
[1752091544896,6.3661,157.05,157.02,6.3669]
[1752091545092,6.3661,157.05,157.01,11.63492695]
[1752091545093,225.92,157.09,156.99,13.80842695]
[1752091545297,6.367,157.03,157.0,6.3674]
[1752091545699,225.92,157.09,156.99,11.63492695]
[1752091546600,225.92,157.09,157.01,6.3672]
[1752091546897,225.92,157.09,156.99,11.63492695]
[1752091547200,228.0466,157.1,157.02,11.63492695]
[1752091547498,225.74,157.11,157.02,11.63492695]